fUST/lending_fUST_20250723
["ID","MTS","AMOUNT","RATE_DAILY","PERIOD"]
[374125635,1753216251297,-460.0,0.00019279,2]
[374125636,1753216251383,-460.0,0.00019279,2]
[374125637,1753216251393,-568.29,0.00019279,2]
[374125638,1753216251402,-580.94,0.00019279,2]
[374125639,1753216251411,-460.0,0.0001928,2]
[374125640,1753216251421,-1099.14,0.00019281,2]
[374125641,1753216251430,-995.01,0.00019281,2]
[374125642,1753216251439,-821.49,0.00019281,2]
[374125643,1753216251448,-706.77,0.00019282,2]
[374125644,1753216251458,-460.0,0.00019282,2]
[374125645,1753216251467,-1543.38,0.00019282,2]
[374125646,1753216251476,-1109.86,0.00019282,2]
[374125647,1753216251485,-997.8,0.00019282,2]
[374125648,1753216251494,-92133.56902378,0.00019329,2]
[374125649,1753216251503,-307.98289009,0.00019373,2]
[374125650,1753216251512,-153.87587516,0.00019373,2]
[374125651,1753216251522,-163.68174743,0.00019373,2]
[374125652,1753216251531,-500.0,0.00019373,2]
[374125653,1753216251540,-503.20157742,0.00019373,2]
[374125654,1753216251549,-500.0,0.00019373,2]
[374125655,1753216251559,-500.0,0.00019373,2]
[374125656,1753216251568,-500.0,0.00019438,2]
[374125657,1753216251577,-500.0,0.00019438,2]
[374125658,1753216251586,-539.86,0.00019438,2]
[374125659,1753216251595,-233065.89014712,0.000195,2]
[374125660,1753216251609,-1255.18,0.00019551,2]
[374125661,1753216251618,-1003.07,0.00019551,2]
[374125662,1753216251628,-1777.89,0.00019551,2]
[374125663,1753216251641,-616.91,0.00019551,2]
[374125664,1753216251650,-876.74,0.00019551,2]
[374125665,1753216251659,-460.0,0.00019551,2]
[374125666,1753216251668,-460.0,0.00019551,2]
[374125667,1753216251678,-460.0,0.00019551,2]
[374125668,1753216251687,-901.65,0.00019551,2]
[374125669,1753216251697,-387.69772743,0.00019552,2]
[374125670,1753216251707,-460.0,0.00019552,2]
[374125671,1753216251718,-460.0,0.00019552,2]
[374125672,1753216251727,-460.0,0.00019552,2]
[374125673,1753216251736,-460.0,0.00019552,2]
[374125674,1753216251746,-460.0,0.00019552,2]
[374125675,1753216251755,-460.0,0.00019552,2]
[374125676,1753216251764,-177.46,0.00019553,2]
[374125677,1753216251773,-460.0,0.00019553,2]
[374125678,1753216251782,-460.0,0.00019553,2]
[374125679,1753216251791,-460.0,0.00019553,2]
[374125680,1753216251801,-460.0,0.00019553,2]
[374125681,1753216251810,-460.0,0.00019553,2]
[374125682,1753216251819,-460.0,0.00019553,2]
[374125683,1753216251828,-460.0,0.00019553,2]
[374125684,1753216251837,-460.0,0.00019553,2]
[374125685,1753216251846,-568.29,0.00019553,2]
[374125686,1753216251858,-580.94,0.00019553,2]
[374125687,1753216251867,-460.0,0.00019554,2]
[374125688,1753216251877,-1099.14,0.00019555,2]
[374125689,1753216251886,-995.01,0.00019555,2]
[374125690,1753216251896,-821.49,0.00019555,2]
[374125691,1753216251905,-706.77,0.00019556,2]
[374125692,1753216251914,-460.0,0.00019556,2]
[374125693,1753216251923,-1543.38,0.00019556,2]
[374125694,1753216251932,-1109.86,0.00019556,2]
[374125695,1753216251941,-997.8,0.00019556,2]
[374125696,1753216251950,-580.0,0.00019777,2]
[374125697,1753216251959,-3000.0,0.00019812,2]
[374125698,1753216251968,-500.0,0.00019812,2]
[374125699,1753216251977,-1000.0,0.00019816,2]
[374125700,1753216251986,-1000.0,0.00019816,2]
[374125701,1753216251995,-2000.0,0.00019816,2]
[374125702,1753216252005,-500.0,0.00019816,2]
[374125703,1753216252014,-565.08840486,0.00019816,2]
[374125704,1753216252023,-500.0,0.00019816,2]
[374125705,1753216252032,-1255.18,0.00019825,2]
[374125706,1753216252042,-1003.07,0.00019825,2]
[374125707,1753216252051,-1777.89,0.00019825,2]
[374125708,1753216252060,-616.91,0.00019825,2]
[374125709,1753216252069,-876.74,0.00019825,2]
[374125710,1753216252078,-460.0,0.00019825,2]
[374125711,1753216252087,-460.0,0.00019825,2]
[374125712,1753216252098,-460.0,0.00019825,2]
[374125713,1753216252108,-460.0,0.00019826,2]
[374125714,1753216252117,-460.0,0.00019826,2]
[374125715,1753216252126,-460.0,0.00019826,2]
[374125716,1753216252135,-460.0,0.00019826,2]
[374125717,1753216252144,-460.0,0.00019826,2]
[374125718,1753216252154,-460.0,0.00019827,2]
[374125719,1753216252164,-460.0,0.00019827,2]
[374125720,1753216252173,-460.0,0.00019827,2]
[374125721,1753216252183,-460.0,0.00019827,2]
[374125722,1753216252192,-460.0,0.00019827,2]
[374125723,1753216252202,-460.0,0.00019827,2]
[374125724,1753216252211,-460.0,0.00019827,2]
[374125725,1753216252220,-460.0,0.00019827,2]
[374125726,1753216252229,-568.29,0.00019827,2]
[374125727,1753216252238,-580.94,0.00019827,2]
[374125728,1753216252247,-460.0,0.00019828,2]
[374125729,1753216252256,-1099.14,0.00019829,2]
[374125730,1753216252265,-995.01,0.00019829,2]
[374125731,1753216252274,-821.49,0.00019829,2]
[374125732,1753216252283,-706.77,0.0001983,2]
[374125733,1753216252293,-310.81,0.0001983,2]
[374125734,1753216252303,-1543.38,0.0001983,2]
[374125735,1753216252312,-1109.86,0.0001983,2]
[374125736,1753216252321,-997.8,0.0001983,2]
[374125737,1753216252330,-500.0,0.00019921,2]
[374125738,1753216252340,-974.09407715,0.00019921,2]
[374125739,1753216252351,-472.07520401,0.00019921,2]
[374125740,1753216252360,-6927.78568918,0.0002,2]
[374125741,1753216252369,-2021.0217946,0.0002,2]
[374125742,1753216252378,-14350.5243845,0.0002,2]
[374125743,1753216252387,-3195.40999342,0.0002,2]
[374125744,1753216252397,-362.82157621,0.0002,2]
[374125745,1753216252406,-47340.97896948,0.0002,2]
[374125746,1753216252415,-20261.90329963,0.0002,2]
[374125747,1753216252424,-170.70320484,0.00020002,2]
[374125748,1753216252433,-587.0,0.00020061,2]
[374125749,1753216252442,-1255.18,0.00020099,2]
[374125750,1753216252451,-1003.07,0.00020099,2]
[374125751,1753216252460,-1777.89,0.00020099,2]
[374125752,1753216252470,-616.91,0.00020099,2]
[374125753,1753216252479,-876.74,0.00020099,2]
[374125754,1753216252487,-460.0,0.00020099,2]
[374125755,1753216252497,-460.0,0.00020099,2]
[374125756,1753216252506,-256.45,0.00020099,2]
[374125757,1753216252515,-460.0,0.000201,2]
[374125758,1753216252523,-460.0,0.000201,2]
[374125759,1753216252532,-460.0,0.000201,2]
[374125760,1753216252541,-460.0,0.000201,2]
[374125761,1753216252550,-493.52,0.000201,2]
[374125762,1753216252559,-460.0,0.00020101,2]
[374125763,1753216252569,-460.0,0.00020101,2]
[374125764,1753216252578,-460.0,0.00020101,2]
[374125765,1753216252587,-493.21,0.00020101,2]
[374125766,1753216252597,-304.70456655,0.00020101,2]
[374125767,1753216252608,-460.0,0.00020101,2]
[374125768,1753216252617,-460.0,0.00020101,2]
[374125769,1753216252627,-460.0,0.00020101,2]
[374125770,1753216252645,-568.29,0.00020101,2]
[374125771,1753216252656,-580.94,0.00020101,2]
[374125772,1753216252666,-460.0,0.00020102,2]
[374125773,1753216252675,-1099.14,0.00020103,2]
[374125774,1753216252684,-995.01,0.00020103,2]
[374125775,1753216252693,-821.49,0.00020103,2]
[374125776,1753216252703,-706.77,0.00020104,2]
[374125777,1753216252715,-1543.38,0.00020104,2]
[374125778,1753216252724,-1109.86,0.00020104,2]
[374125779,1753216252733,-997.8,0.00020104,2]
[374125780,1753216252743,-483.145028,0.00020187,2]
[374125781,1753216252751,-736.0,0.00020261,2]
[374125782,1753216252761,-1000.0,0.0002036,2]
[374125783,1753216252770,-500.0,0.00020364,2]
[374125784,1753216252779,-1255.18,0.00020373,2]
[374125785,1753216252788,-1003.07,0.00020373,2]
[374125786,1753216252797,-1777.89,0.00020373,2]
[374125787,1753216252807,-616.91,0.00020373,2]
[374125788,1753216252816,-876.74,0.00020373,2]
[374125789,1753216252825,-460.0,0.00020373,2]
[374125790,1753216252834,-460.0,0.00020373,2]
[374125791,1753216252843,-460.0,0.00020374,2]
[374125792,1753216252855,-460.0,0.00020374,2]
[374125793,1753216252864,-460.0,0.00020374,2]
[374125794,1753216252874,-460.0,0.00020374,2]
[374125795,1753216252883,-460.0,0.00020375,2]
[374125796,1753216252892,-460.0,0.00020375,2]
[374125797,1753216252901,-460.0,0.00020375,2]
[374125798,1753216252909,-460.0,0.00020375,2]
[374125799,1753216252918,-460.0,0.00020375,2]
[374125800,1753216252927,-568.29,0.00020375,2]
[374125801,1753216252936,-580.94,0.00020375,2]
[374125802,1753216252944,-460.0,0.00020376,2]
[374125803,1753216252953,-1099.14,0.00020377,2]
[374125804,1753216252962,-995.01,0.00020377,2]
[374125805,1753216252971,-821.49,0.00020377,2]
[374125806,1753216253052,-706.77,0.00020378,2]
[374125807,1753216253061,-1543.38,0.00020378,2]
[374125808,1753216253071,-1109.86,0.00020378,2]
[374125809,1753216253080,-997.8,0.00020378,2]
[374125810,1753216253090,-653.23,0.00020454,2]
[374125811,1753216253101,-9297.13174675,0.000205,2]
[374125812,1753216253111,-464.349,0.00020619,2]
[374125813,1753216253120,-1255.18,0.00020647,2]
[374125814,1753216253129,-1003.07,0.00020647,2]
[374125815,1753216253138,-1777.89,0.00020647,2]
[374125816,1753216253147,-616.91,0.00020647,2]
[374125817,1753216253159,-876.74,0.00020647,2]
[374125818,1753216253170,-460.0,0.00020647,2]
[374125819,1753216253180,-460.0,0.00020647,2]
[374125820,1753216253191,-460.0,0.00020648,2]
[374125821,1753216253201,-460.0,0.00020648,2]
[374125822,1753216253213,-460.0,0.00020648,2]
[374125823,1753216253222,-460.0,0.00020648,2]
[374125824,1753216253231,-460.0,0.00020649,2]
[374125825,1753216253240,-460.0,0.00020649,2]
[374125826,1753216253250,-460.0,0.00020649,2]
[374125827,1753216253258,-505.43,0.00020649,2]
[374125828,1753216253269,-460.0,0.00020649,2]
[374125829,1753216253279,-568.29,0.00020649,2]
[374125830,1753216253289,-580.94,0.00020649,2]
[374125831,1753216253299,-460.0,0.0002065,2]
[374125832,1753216253308,-1099.14,0.00020651,2]
[374125833,1753216253317,-995.01,0.00020651,2]
[374125834,1753216253326,-821.49,0.00020651,2]
[374125835,1753216253335,-706.77,0.00020652,2]
[374125836,1753216253345,-1543.38,0.00020652,2]
[374125837,1753216253355,-1109.86,0.00020652,2]
[374125838,1753216253364,-997.8,0.00020652,2]
[374125839,1753216253373,-1298.88045338,0.0002092,2]
[374125840,1753216253383,-1255.18,0.00020921,2]
[374125841,1753216253392,-1003.07,0.00020921,2]
[374125842,1753216253403,-1777.89,0.00020921,2]
[374125843,1753216253413,-616.91,0.00020921,2]
[374125844,1753216253423,-876.74,0.00020921,2]
[374125845,1753216253433,-460.0,0.00020921,2]
[374125846,1753216253442,-460.0,0.00020921,2]
[374125847,1753216253452,-460.0,0.00020922,2]
[374125848,1753216253461,-460.0,0.00020922,2]
[374125849,1753216253471,-460.0,0.00020922,2]
[374125850,1753216253482,-460.0,0.00020922,2]
[374125851,1753216253491,-460.0,0.00020923,2]
[374125852,1753216253500,-278.32,0.00020923,2]
[374125853,1753216253510,-297.31697422,0.00020923,2]
[374125854,1753216253519,-460.0,0.00020923,2]
[374125855,1753216253530,-568.29,0.00020923,2]
[374125856,1753216253540,-580.94,0.00020923,2]
[374125857,1753216253550,-460.0,0.00020924,2]
[374125858,1753216253559,-1099.14,0.00020925,2]
[374125859,1753216253568,-995.01,0.00020925,2]
[374125860,1753216253578,-821.49,0.00020925,2]
[374125861,1753216253588,-706.77,0.00020926,2]
[374125862,1753216253598,-1543.38,0.00020926,2]
[374125863,1753216253607,-1109.86,0.00020926,2]
[374125864,1753216253617,-997.8,0.00020926,2]
[374125865,1753216253627,-250.59356224,0.00020956,2]
[374125866,1753216253640,-1255.18,0.00021195,2]
[374125867,1753216253649,-1003.07,0.00021195,2]
[374125868,1753216253658,-1777.89,0.00021195,2]
[374125869,1753216253667,-616.91,0.00021195,2]
[374125870,1753216253676,-876.74,0.00021195,2]
[374125871,1753216253686,-422.6,0.00021195,2]
[374125872,1753216253695,-460.0,0.00021195,2]
[374125873,1753216253704,-460.0,0.00021196,2]
[374125874,1753216253715,-460.0,0.00021196,2]
[374125875,1753216253726,-460.0,0.00021196,2]
[374125876,1753216253735,-324.23,0.00021196,2]
[374125877,1753216253745,-188.7,0.00021197,2]
[374125878,1753216253754,-460.0,0.00021197,2]
[374125879,1753216253764,-568.29,0.00021197,2]
[374125880,1753216253774,-580.94,0.00021197,2]
[374125881,1753216253783,-460.0,0.00021198,2]
[374125882,1753216253793,-1099.14,0.00021199,2]
[374125883,1753216253802,-995.01,0.00021199,2]
[374125884,1753216253811,-821.49,0.00021199,2]
[374125885,1753216253821,-706.77,0.000212,2]
[374125886,1753216253831,-1543.38,0.000212,2]
[374125887,1753216253840,-1109.86,0.000212,2]
[374125888,1753216253850,-997.8,0.000212,2]
[374125889,1753216253860,-385.0,0.00021212,2]
[374125890,1753216253869,-233.16413217,0.00021212,2]
[374125891,1753216253998,-901.65,0.00019825,2]
[374125892,1753216254008,-266.83586783,0.00021212,2]
[374125893,1753216254018,-1255.18,0.00021469,2]
[374125894,1753216254027,-1003.07,0.00021469,2]
[374125895,1753216254036,-1777.89,0.00021469,2]
[374125896,1753216254046,-616.91,0.00021469,2]
[374125897,1753216254055,-876.74,0.00021469,2]
[374125898,1753216254064,-460.0,0.00021469,2]
[374125899,1753216254074,-460.0,0.0002147,2]
[374125900,1753216254084,-460.0,0.0002147,2]
[374125901,1753216254094,-460.0,0.0002147,2]
[374125902,1753216254104,-460.0,0.00021471,2]
[374125903,1753216254114,-881.83,0.00021471,2]
[374125904,1753216254124,-568.29,0.00021471,2]
[374125905,1753216254134,-580.94,0.00021471,2]
[374125906,1753216254144,-460.0,0.00021472,2]
[374125907,1753216254154,-1099.14,0.00021473,2]
[374125908,1753216254164,-995.01,0.00021473,2]
[374125909,1753216254174,-821.49,0.00021473,2]
[374125910,1753216254183,-706.77,0.00021474,2]
[374125911,1753216254192,-1543.38,0.00021474,2]
[374125912,1753216254203,-714.660449,0.00021474,2]
[374125913,1753216254826,-460.0,0.00016811,2]
[374125914,1753216254836,-91.7807951,0.00016811,2]
[374125915,1753216254848,-368.2192049,0.00016811,2]
[374125916,1753216254860,-500.0,0.00016811,2]
[374125917,1753216254869,-464.7873183,0.00016811,2]
[374125918,1753216254881,-35.2126817,0.00016811,2]
[374125919,1753216254890,-500.0,0.00016811,2]
[374125920,1753216254899,-500.0,0.00016811,2]
[374125921,1753216254909,-500.0,0.00016811,2]
[374125922,1753216254919,-500.0,0.00016811,2]
[374125923,1753216254929,-500.0,0.00016811,2]
[374125924,1753216254938,-500.0,0.00016811,2]
[374125925,1753216254947,-500.0,0.00016811,2]
[374125926,1753216254957,-500.0,0.00016811,2]
[374125927,1753216254966,-500.0,0.00016811,2]
[374125928,1753216254975,-500.0,0.00016811,2]
[374125929,1753216254985,-288.19334537,0.00016811,2]
[374125930,1753216254995,-231.44032825,0.00016811,2]
[374125931,1753216255004,-614.64667732,0.00016811,2]
[374125932,1753216255013,-500.0,0.00016811,2]
[374125933,1753216255023,-500.0,0.00016811,2]
[374125934,1753216255032,-500.0,0.00016811,2]
[374125935,1753216255040,-500.0,0.00016811,2]
[374125936,1753216255049,-500.0,0.00016811,2]
[374125937,1753216255058,-500.0,0.00016811,2]
[374125938,1753216255067,-500.0,0.00016811,2]
[374125939,1753216255076,-500.0,0.00016811,2]
[374125940,1753216255086,-500.0,0.00016811,2]
[374125941,1753216255095,-500.0,0.00016811,2]
[374125942,1753216255107,-500.0,0.00016811,2]
[374125943,1753216255116,-50.29596838,0.00016811,2]
[374125944,1753216255181,-449.70403162,0.00016811,2]
[374125945,1753216255191,-500.0,0.00016811,2]
[374125946,1753216255200,-500.0,0.00016811,2]
[374125947,1753216255210,-519.22363085,0.00016811,2]
[374125948,1753216255219,-500.0,0.00016811,2]
[374125949,1753216255228,-306.17661597,0.00016811,2]
[374125950,1753216255238,-500.0,0.00016811,2]
[374125951,1753216255247,-500.0,0.00016811,2]
[374125952,1753216255256,-500.0,0.00016811,2]
[374125953,1753216255266,-500.0,0.00016811,2]
[374125954,1753216255275,-500.0,0.00016811,2]
[374125955,1753216255285,-500.0,0.00016811,2]
[374125956,1753216255294,-500.0,0.00016811,2]
[374125957,1753216255304,-500.0,0.00016811,2]
[374125958,1753216255314,-500.0,0.00016811,2]
[374125959,1753216255323,-500.0,0.00016811,2]
[374125960,1753216255334,-500.0,0.00016811,2]
[374125961,1753216255345,-500.0,0.00016811,2]
[374125962,1753216255357,-500.0,0.00016811,2]
[374125963,1753216255366,-500.0,0.00016811,2]
[374125964,1753216255376,-393.24104177,0.00016812,2]
[374125965,1753216255386,-460.0,0.00016814,2]
[374125966,1753216255397,-460.0,0.00017085,2]
[374125967,1753216255408,-460.0,0.00017085,2]
[374125968,1753216255418,-367.95461582,0.00017359,2]
[374125969,1753216255427,-271.42,0.00017359,2]
[374125970,1753216255437,-667.23571597,0.00020099,2]
[374125971,1753216255449,-234.41428403,0.00020099,2]
[374125972,1753216255459,-901.65,0.00020373,2]
[374125973,1753216255468,-901.65,0.00020647,2]
[374125974,1753216255478,-901.65,0.00020921,2]
[374125975,1753216255488,-901.65,0.00021195,2]
[374125976,1753216255499,-901.65,0.00021469,2]
[374125977,1753216255509,-257.31548797,0.00021474,2]
[374125978,1753216255523,-137.88406303,0.00021474,2]
[374125979,1753216255533,-997.8,0.00021474,2]
[374125980,1753216255542,-1003.07,0.00021743,2]
[374125981,1753216255552,-1420.53297083,0.00021743,2]
[374125985,1753217344276,24900.0,0.00015812,2]
[374125987,1753217402002,458.987777,0.00013699,2]
[374126018,1753217432721,-972.0,0.00016807,2]
[374126020,1753217432731,-1200.0,0.00016807,2]
[374126021,1753217432740,-300.0,0.00016808,2]
[374126023,1753217432760,-300.0,0.00016808,2]
[374126025,1753217432771,-300.0,0.00016808,2]
[374126027,1753217432781,-300.0,0.00016808,2]
[374126029,1753217432791,-300.0,0.00016808,2]
[374126030,1753217432800,-460.0,0.00016809,2]
[374126032,1753217432809,-460.0,0.00016809,2]
[374126034,1753217432819,-497.8,0.00016809,2]
[374126035,1753217432829,-460.0,0.00016809,2]
[374126037,1753217432838,-460.0,0.00016809,2]
[374126039,1753217432848,-460.0,0.00016809,2]
[374126040,1753217432857,-460.0,0.00016809,2]
[374126042,1753217432867,-679.85,0.00016809,2]
[374126044,1753217432876,-460.0,0.00016809,2]
[374126046,1753217432886,-460.0,0.00016809,2]
[374126047,1753217432895,-969.41,0.00016809,2]
[374126048,1753217432905,-460.0,0.00016809,2]
[374126049,1753217432915,-533.64,0.00016809,2]
[374126050,1753217432924,-460.0,0.00016809,2]
[374126052,1753217432934,-460.0,0.00016809,2]
[374126054,1753217432943,-460.0,0.00016809,2]
[374126055,1753217432954,-460.0,0.00016809,2]
[374126057,1753217432971,-460.0,0.00016809,2]
[374126059,1753217432981,-460.0,0.00016809,2]
[374126061,1753217432990,-460.0,0.00016809,2]
[374126062,1753217433000,-460.0,0.00016809,2]
[374126064,1753217433011,-460.0,0.00016809,2]
[374126066,1753217433020,-460.0,0.00016809,2]
[374126067,1753217433030,-460.0,0.00016809,2]
[374126069,1753217433041,-233.54690599,0.00016809,2]
[374126071,1753217433051,-460.0,0.00016809,2]
[374126073,1753217433061,-460.0,0.00016809,2]
[374126075,1753217433070,-460.0,0.00016809,2]
[374126076,1753217433080,-460.0,0.00016809,2]
[374126078,1753217433090,-460.0,0.00016809,2]
[374126080,1753217433099,-460.0,0.00016809,2]
[374126082,1753217433109,-338.96929357,0.00016809,2]
[374126083,1753217433118,-460.0,0.00016809,2]
[374126085,1753217433128,-460.0,0.00016809,2]
[374126087,1753217433138,-576.43038979,0.00016809,2]
[374126089,1753217433148,-460.0,0.00016809,2]
[374126090,1753217433158,-460.0,0.00016809,2]
[374126092,1753217433167,-460.0,0.00016809,2]
[374126094,1753217433177,-460.0,0.00016809,2]
[374126096,1753217433187,-210.26760973,0.00016809,2]
[374126098,1753217433197,-460.0,0.00016809,2]
[374126100,1753217433206,-460.0,0.0001681,2]
[374126102,1753217433216,-460.0,0.0001681,2]
[374126104,1753217433226,-460.0,0.0001681,2]
[374126106,1753217433235,-460.0,0.0001681,2]
[374126108,1753217433245,-460.0,0.0001681,2]
[374126109,1753217433255,-460.0,0.0001681,2]
[374126110,1753217433265,-460.0,0.0001681,2]
[374126111,1753217433276,-575.83691297,0.0001681,2]
[374126112,1753217433288,-460.0,0.0001681,2]
[374126113,1753217433298,-460.0,0.0001681,2]
[374126114,1753217433307,-460.0,0.0001681,2]
[374126115,1753217433318,-482.96878839,0.0001681,2]
[374126116,1753217433327,-460.0,0.0001681,2]
[374126117,1753217433337,-124.33542214,0.0001681,2]
[374126130,1753217438580,-460.0,0.00016809,2]
[374126131,1753217438590,-460.0,0.00016809,2]
[374126132,1753217438600,-335.66457786,0.0001681,2]
[374126133,1753217438609,-460.0,0.0001681,2]
[374126134,1753217438619,-460.0,0.0001681,2]
[374126135,1753217438629,-460.0,0.0001681,2]
[374126136,1753217438638,-460.0,0.0001681,2]
[374126137,1753217438647,-460.0,0.0001681,2]
[374126138,1753217438656,-460.0,0.0001681,2]
[374126139,1753217438666,-460.0,0.0001681,2]
[374126140,1753217438675,-238.51968945,0.0001681,2]
[374126141,1753217438685,-460.0,0.0001681,2]
[374126142,1753217438695,-460.0,0.0001681,2]
[374126143,1753217438704,-460.0,0.0001681,2]
[374126144,1753217438713,-460.0,0.0001681,2]
[374126145,1753217438723,-460.0,0.0001681,2]
[374126146,1753217438732,-460.0,0.0001681,2]
[374126147,1753217438742,-461.81345738,0.0001681,2]
[374126148,1753217438751,-168.69337428,0.0001681,2]
[374126149,1753217438763,-291.30662572,0.0001681,2]
[374126150,1753217438772,-460.0,0.0001681,2]
[374126151,1753217438782,-460.0,0.0001681,2]
[374126152,1753217438791,-10.70860354,0.0001681,2]
[374126153,1753217438812,-449.29139646,0.0001681,2]
[374126154,1753217438822,-281.68860274,0.0001681,2]
[374126286,1753217443629,-312.81081687,0.00016809,2]
[374126287,1753217443639,-178.31139726,0.0001681,2]
[374126288,1753217443649,-460.0,0.0001681,2]
[374126289,1753217443658,-460.0,0.0001681,2]
[374126290,1753217443667,-460.0,0.0001681,2]
[374126291,1753217443676,-460.0,0.0001681,2]
[374126292,1753217443685,-460.0,0.0001681,2]
[374126293,1753217443694,-460.0,0.0001681,2]
[374126294,1753217443704,-460.0,0.0001681,2]
[374126295,1753217443714,-460.0,0.0001681,2]
[374126296,1753217443724,-460.0,0.0001681,2]
[374126297,1753217443733,-460.0,0.0001681,2]
[374126298,1753217443742,-460.0,0.0001681,2]
[374126299,1753217443751,-460.0,0.0001681,2]
[374126300,1753217443761,-460.0,0.0001681,2]
[374126301,1753217443770,-158.3025868,0.0001681,2]
[374126302,1753217443779,-460.0,0.0001681,2]
[374126303,1753217443789,-460.0,0.0001681,2]
[374126304,1753217443798,-460.0,0.0001681,2]
[374126305,1753217443808,-460.0,0.0001681,2]
[374126306,1753217443818,-460.0,0.0001681,2]
[374126307,1753217443827,-460.0,0.0001681,2]
[374126308,1753217443836,-460.0,0.0001681,2]
[374126309,1753217443846,-460.0,0.0001681,2]
[374126310,1753217443854,-460.0,0.0001681,2]
[374126311,1753217443863,-460.0,0.0001681,2]
[374126312,1753217443875,-460.0,0.0001681,2]
[374126313,1753217443885,-528.6,0.0001681,2]
[374126314,1753217443894,-460.0,0.0001681,2]
[374126315,1753217443903,-460.0,0.0001681,2]
[374126316,1753217443913,-460.0,0.0001681,2]
[374126317,1753217443921,-460.0,0.0001681,2]
[374126318,1753217443931,-460.0,0.0001681,2]
[374126319,1753217443940,-460.0,0.0001681,2]
[374126320,1753217443949,-185.5820132,0.0001681,2]
[374126321,1753217443974,-274.4179868,0.0001681,2]
[374126322,1753217443983,-460.0,0.0001681,2]
[374126323,1753217443992,-460.0,0.00016811,2]
[374126324,1753217444001,-460.0,0.00016811,2]
[374126325,1753217444012,-460.0,0.00016811,2]
[374126326,1753217444021,-460.0,0.00016811,2]
[374126327,1753217444039,-941.67,0.00016811,2]
[374126328,1753217444052,-460.0,0.00016811,2]
[374126329,1753217444062,-460.0,0.00016811,2]
[374126330,1753217444072,-460.0,0.00016811,2]
[374126331,1753217444081,-460.0,0.00016811,2]
[374126332,1753217444091,-460.0,0.00016811,2]
[374126333,1753217444100,-460.0,0.00016811,2]
[374126334,1753217444110,-375.78971773,0.00016811,2]
[374126335,1753217444122,-460.0,0.00016811,2]
[374126336,1753217444131,-115.16490981,0.00016811,2]
[374126337,1753217444236,-344.83509019,0.00016811,2]
[374126338,1753217444245,-460.0,0.00016811,2]
[374126339,1753217444255,-460.0,0.00016811,2]
[374126340,1753217444265,-460.0,0.00016811,2]
[374126341,1753217444274,-360.31046574,0.00016811,2]
[374126349,1753217446808,-99.68953426,0.00016811,2]
[374126350,1753217446818,-460.0,0.00016811,2]
[374126351,1753217446827,-460.0,0.00016811,2]
[374126352,1753217446837,-460.0,0.00016811,2]
[374126353,1753217446847,-460.0,0.00016811,2]
[374126355,1753217446856,-460.0,0.00016811,2]
[374126357,1753217446866,-358.5154396,0.00016811,2]
[374126361,1753217446918,-101.4845604,0.00016811,2]